[Event "European Womens-ch 2025"]
[Site "Rhodes"]
[Date "2025.04.05"]
[Round "6.14"]
[White "Kiolbasa, Oliwia"]
[Black "Zherebtsova, Alexandra"]
[Result "1/2-1/2"]
[Annotator "ChessBase"]
[ECO "C24"]
[WhiteElo "2360"]
[BlackElo "2229"]
[PlyCount "99"]
[EventDate "2025.03.29"]
[EventType "swiss"]
[EventCountry "GRE"]
[SourceTitle "playchess.com"]
[Source "ChessBase"]
[SourceQuality "1"]
[TimeControl "40/5400+30:1800+30"]

1. e4 {[%emt 0:00:02]} e5 {[%emt 0:01:50]} 2. Nf3 {[%emt 0:00:05]} Nc6 {[%emt 0:00:03]} 3. Bc4 {[%emt 0:00:18]} Nf6 {[%emt 0:00:32]} 4. d3 {[%emt 0:00:10]} d5 {[%emt 0:01:13]} 5. exd5 {[%emt 0:01:38]} Nxd5 {[%emt 0:00:07]} 6. O-O {[%emt 0:02:49]} Be7 {[%emt 0:00:52]} 7. Re1 {[%emt 0:01:18]} f6 {[%emt 0:00:58]} 8. d4 {[%emt 0:09:27]} Nb6 {[%emt 0:01:07]} 9. Bb5 {[%emt 0:00:06]} O-O {[%emt 0:00:55]} 10. Bxc6 {[%emt 0:03:50]} bxc6 {[%emt 0:00:05]} 11. dxe5 {[%emt 0:00:05]} Qxd1 {[%emt 0:00:50]} 12. Rxd1 {[%emt 0:00:07]} Bg4 {[%emt 0:00:12]} 13. Nbd2 {[%emt 0:05:34]} fxe5 {[%emt 0:06:46]} 14. Re1 {[%emt 0:00:48]} Bd6 {[%emt 0:09:59]} 15. Ng5 {[%emt 0:01:55]} Nd5 {[%emt 0:05:27]} 16. a3 {[%emt 0:02:36]} Nf4 {[%emt 0:08:04]} 17. f3 {[%emt 0:17:02]} Bf5 {[%emt 0:15:07]} 18. Nge4 {[%emt 0:00:10]} Ne6 {[%emt 0:03:06]} 19. b3 {[%emt 0:02:48]} Nd4 {[%emt 0:03:08]} 20. Ra2 {[%emt 0:00:09]} Be6 {[%emt 0:04:18]} 21. Nf1 {[%emt 0:11:24]} c5 {[%emt 0:08:16]} 22. Be3 {[%emt 0:00:41]} Rfe8 {[%emt 0:03:26]} 23. Nfd2 {[%emt 0:02:37]} Rab8 {[%emt 0:01:49]} 24. Bf2 {[%emt 0:03:56]} h6 {[%emt 0:01:44]} 25. a4 {[%emt 0:04:52]} a6 {[%emt 0:03:12]} 26. Kf1 {[%emt 0:00:11]} Kf8 {[%emt 0:00:51]} 27. h4 {[%emt 0:04:23]} Bf7 {[%emt 0:01:41]} 28. Bg3 {[%emt 0:01:33]} Rb7 {[%emt 0:03:11]} 29. Bf2 {[%emt 0:00:36]} Reb8 {[%emt 0:01:46]} 30. Rd1 {[%emt 0:06:17]} Be7 {[%emt 0:02:23]} 31. Re1 {[%emt 0:06:01]} Bd6 {[%emt 0:02:59]} 32. g3 {[%emt 0:04:38]} c4 {[%emt 0:01:37]} 33. Nxc4 {[%emt 0:03:18]} Bxc4+ {[%emt 0:00:36]} 34. bxc4 {[%emt 0:00:01]} Nxf3 {[%emt 0:00:16]} 35. Rd1 {[%emt 0:02:25]} Rb1 {[%emt 0:01:17]} 36. Rxb1 {[%emt 0:00:34]} Rxb1+ {[%emt 0:00:06]} 37. Ke2 {[%emt 0:00:03]} Nh2 {[%emt 0:01:32]} 38. Nxd6 {[%emt 0:03:48]} cxd6 {[%emt 0:00:01]} 39. c5 {[%emt 0:00:07]} Ke7 {[%emt 0:05:19]} 40. Ra3 {[%emt 0:00:00]} Rb2 {[%emt 0:00:00]} 41. Rc3 {[%emt 0:08:03]} dxc5 {[%emt 0:07:41]} 42. Rxc5 {[%emt 0:02:46]} Ng4 {[%emt 0:01:48]} 43. Be1 {[%emt 0:00:15]} Kd6 {[%emt 0:04:18]} 44. Rc8 {[%emt 0:00:14]} e4 {[%emt 0:02:33]} 45. Bd2 {[%emt 0:05:21]} h5 {[%emt 0:02:19]} 46. a5 {[%emt 0:02:21]} Kd5 {[%emt 0:04:04]} 47. Rd8+ {[%emt 0:05:09]} Kc4 {[%emt 0:01:15]} 48. Rc8+ {[%emt 0:00:37]} Kd5 {[%emt 0:00:07]} 49. Bf4 {[%emt 0:00:09]} Ra2 {[%emt 0:01:05]} 50. Bd2 {[%emt 0:01:54]} 1/2-1/2

[Event "European Womens-ch 2025"]
[Site "Rhodes"]
[Date "2025.04.05"]
[Round "6.15"]
[White "Gaponenko, Inna"]
[Black "Urh, Zala"]
[Result "0-1"]
[Annotator "ChessBase"]
[ECO "C45"]
[WhiteElo "2349"]
[BlackElo "2244"]
[PlyCount "104"]
[EventDate "2025.03.29"]
[EventType "swiss"]
[EventCountry "GRE"]
[SourceTitle "playchess.com"]
[Source "ChessBase"]
[SourceQuality "1"]
[TimeControl "40/5400+30:1800+30"]

1. e4 {[%emt 0:00:07]} e5 {[%emt 0:00:08]} 2. Nf3 {[%emt 0:00:09]} Nc6 {[%emt 0:00:04]} 3. d4 {[%emt 0:00:36]} exd4 {[%emt 0:00:10]} 4. Nxd4 {[%emt 0:00:21]} Bc5 {[%emt 0:00:42]} 5. Be3 {[%emt 0:00:36]} Qf6 {[%emt 0:00:46]} 6. c3 {[%emt 0:00:06]} Nge7 {[%emt 0:01:40]} 7. Bb5 {[%emt 0:00:08]} a6 {[%emt 0:17:13]} 8. Bxc6 {[%emt 0:18:29]} Nxc6 {[%emt 0:11:48]} 9. O-O {[%emt 0:01:55]} O-O {[%emt 0:02:30]} 10. Nc2 {[%emt 0:08:12]} Bxe3 {[%emt 0:09:13]} 11. Nxe3 {[%emt 0:00:15]} Ne7 {[%emt 0:00:15]} 12. Nd2 {[%emt 0:06:31]} Qe6 {[%emt 0:11:49]} 13. Qb3 {[%emt 0:06:42]} d6 {[%emt 0:06:13]} 14. Nd5 {[%emt 0:03:54]} Nxd5 {[%emt 0:11:21]} 15. exd5 {[%emt 0:00:28]} Qg6 {[%emt 0:00:05]} 16. c4 {[%emt 0:12:12]} Qg5 {[%emt 0:11:36]} 17. Ne4 {[%emt 0:09:09]} Qf4 {[%emt 0:01:36]} 18. Rfe1 {[%emt 0:00:59]} b6 {[%emt 0:07:57]} 19. Qg3 {[%emt 0:15:35]} Qxg3 {[%emt 0:01:37]} 20. Nxg3 {[%emt 0:01:15]} Bd7 {[%emt 0:00:06]} 21. Re7 {[%emt 0:01:54]} Rad8 {[%emt 0:00:06]} 22. f3 {[%emt 0:00:33]} Rfe8 {[%emt 0:00:20]} 23. Rae1 {[%emt 0:01:11]} Rxe7 {[%emt 0:00:36]} 24. Rxe7 {[%emt 0:00:04]} Kf8 {[%emt 0:00:04]} 25. Re3 {[%emt 0:00:04]} Rb8 {[%emt 0:03:07]} 26. Rc3 {[%emt 0:03:33]} Ke7 {[%emt 0:01:07]} 27. Kf2 {[%emt 0:00:24]} b5 {[%emt 0:01:11]} 28. c5 {[%emt 0:00:59]} dxc5 {[%emt 0:00:11]} 29. Rxc5 {[%emt 0:00:05]} Rc8 {[%emt 0:00:17]} 30. b4 {[%emt 0:00:49]} f5 {[%emt 0:00:57]} 31. Ke3 {[%emt 0:01:36]} g6 {[%emt 0:00:20]} 32. h4 {[%emt 0:00:36]} Kd6 {[%emt 0:00:23]} 33. Kf4 {[%emt 0:00:17]} h6 {[%emt 0:00:51]} 34. Ne2 {[%emt 0:02:09]} Rg8 {[%emt 0:00:25]} 35. Nd4 {[%emt 0:05:11]} g5+ {[%emt 0:00:07]} 36. hxg5 {[%emt 0:00:03]} hxg5+ {[%emt 0:00:03]} 37. Ke3 {[%emt 0:00:14]} Re8+ {[%emt 0:01:04]} 38. Kd3 {[%emt 0:00:06]} Re5 {[%emt 0:00:44]} 39. g3 {[%emt 0:01:52]} Rxd5 {[%emt 0:00:17]} 40. Rxd5+ {[%emt 0:00:00]} Kxd5 {[%emt 0:00:00]} 41. f4 {[%emt 0:09:03]} gxf4 {[%emt 0:04:42]} 42. gxf4 {[%emt 0:00:12]} c5 {[%emt 0:02:26]} 43. bxc5 {[%emt 0:00:06]} Kxc5 {[%emt 0:00:05]} 44. a3 {[%emt 0:00:06]} Kd5 {[%emt 0:04:33]} 45. Nb3 {[%emt 0:12:03]} Be8 {[%emt 0:02:37]} 46. Nd4 {[%emt 0:11:30]} a5 {[%emt 0:15:40]} 47. Nb3 {[%emt 0:00:03]} b4 {[%emt 0:00:03]} 48. Nxa5 {[%emt 0:00:04]} bxa3 {[%emt 0:00:03]} 49. Kc2 {[%emt 0:00:33]} Bf7 {[%emt 0:01:13]} 50. Kb1 {[%emt 0:01:31]} Bg8 {[%emt 0:02:29]} 51. Ka1 {[%emt 0:00:16]} Kc5 {[%emt 0:00:26]} 52. Nb7+ {[%emt 0:00:09]} Kc6 {[%emt 0:00:07]} 0-1

[Event "European Womens-ch 2025"]
[Site "Rhodes"]
[Date "2025.04.05"]
[Round "6.16"]
[White "Wagner, Dinara"]
[Black "Velikic, Adela"]
[Result "1/2-1/2"]
[Annotator "RC"]
[ECO "D35"]
[WhiteElo "2440"]
[BlackElo "2214"]
[PlyCount "75"]
[EventDate "2025.03.29"]
[EventType "swiss"]
[EventCountry "GRE"]
[SourceTitle "playchess.com"]
[Source "ChessBase"]
[SourceQuality "1"]
[TimeControl "40/5400+30:1800+30"]

1. d4 {[%emt 0:00:04]} d5 {[%emt 0:00:06]} 2. c4 {[%emt 0:00:03]} e6 {[%emt 0:00:05]} 3. Nf3 {[%emt 0:00:04]} Nf6 {[%emt 0:00:06]} 4. Nc3 {[%emt 0:00:14]} Nbd7 {[%emt 0:00:06]} 5. cxd5 {[%emt 0:04:29]} exd5 {[%emt 0:00:07]} 6. Bf4 {[%emt 0:00:03]} Nb6 {[%emt 0:01:55]} 7. e3 {[%emt 0:01:33]} Bf5 {[%emt 0:01:33]} 8. h3 {[%emt 0:00:53]} c6 9. Nh4 {[%emt 0:00:30]} Bg6 {[%emt 0:24:00]} 10. Nxg6 {[%emt 0:00:30]} hxg6 {[%emt 0:00:30]} 11. Be2 {[%emt 0:00:30]} Bd6 {[%emt 0:00:30]} 12. Bxd6 {[%emt 0:00:30]} Qxd6 {[%emt 0:00:30]} 13. Qb3 {[%emt 0:00:30]} Qe7 {[%emt 0:00:30]} 14. a4 {[%emt 0:00:30]} Nc8 {[%emt 0:00:30]} 15. Qa3 {[%emt 0:00:30]} Nd6 {[%emt 0:00:30]} 16. b4 {[%emt 0:00:30]} a6 {[%emt 0:00:30]} 17. O-O {[%emt 0:00:30]} g5 {[%emt 0:00:30]} 18. Qb3 {[%emt 0:00:30]} g4 {[%emt 0:00:30]} 19. Bxg4 {[%emt 0:00:30]} Nxg4 {[%emt 0:00:30]} 20. hxg4 {[%emt 0:00:30]} Nc4 {[%emt 0:00:30]} 21. Qd1 {[%emt 0:00:30]} O-O-O {[%emt 0:00:30]} 22. Qd3 {[%emt 0:00:30]} Rd6 {[%emt 0:00:30]} 23. Rfe1 {[%emt 0:00:30]} Rdh6 {[%emt 0:00:30]} 24. Kf1 {[%emt 0:00:30]} Qxb4 {[%emt 0:00:30]} 25. Reb1 {[%emt 0:00:30]} Nd2+ {[%emt 0:00:30]} 26. Ke2 {[%emt 0:00:30]} Nxb1 {[%emt 0:00:30]} 27. Rxb1 {[%emt 0:00:30]} Qe7 {[%emt 0:00:30]} 28. a5 {[%emt 0:00:30]} Rh1 {[%emt 0:00:30]} 29. Na4 {[%emt 0:00:30]} Rxb1 {[%emt 0:00:30]} 30. Qxb1 {[%emt 0:00:30]} Qe4 {[%emt 0:00:30]} 31. Qb4 {[%emt 0:00:30]} Qxg4+ {[%emt 0:00:30]} 32. Kd2 {[%emt 0:00:30]} Qxg2 {[%emt 0:00:30]} 33. Qd6 {[%emt 0:00:30]} Qxf2+ {[%emt 0:00:30]} 34. Kd3 {[%emt 0:00:30]} Qf1+ {[%emt 0:00:30]} 35. Kd2 {[%emt 0:00:30]} Qf2+ {[%emt 0:00:30]} 36. Kd3 {[%emt 0:00:30]} Qf1+ {[%emt 0:00:30]} 37. Kd2 {[%emt 0:00:30]} Qf2+ {[%emt 0:00:30]} 38. Kd3 {[%emt 0:00:30]} 1/2-1/2

[Event "European Womens-ch 2025"]
[Site "Rhodes"]
[Date "2025.04.05"]
[Round "6.17"]
[White "Javakhishvili, Lela"]
[Black "Wikar, Martyna"]
[Result "1-0"]
[Annotator "RC"]
[ECO "A37"]
[WhiteElo "2429"]
[BlackElo "2239"]
[PlyCount "79"]
[EventDate "2025.03.29"]
[EventType "swiss"]
[EventCountry "GRE"]
[SourceTitle "playchess.com"]
[Source "ChessBase"]
[SourceQuality "1"]
[TimeControl "40/5400+30:1800+30"]

1. Nf3 {[%emt 0:00:08]} c5 {[%emt 0:00:47]} 2. c4 {[%emt 0:00:27]} Nc6 {[%emt 0:00:50]} 3. g3 {[%emt 0:00:16]} e5 {[%emt 0:01:08]} 4. Bg2 {[%emt 0:00:35]} d6 {[%emt 0:04:09]} 5. Nc3 {[%emt 0:01:29]} g6 {[%emt 0:00:55]} 6. a3 {[%emt 0:01:45]} a5 {[%emt 0:00:52]} 7. O-O {[%emt 0:00:42]} Bg7 {[%emt 0:01:15]} 8. d3 {[%emt 0:00:52]} Nge7 {[%emt 0:01:20]} 9. Rb1 {[%emt 0:01:35]} O-O {[%emt 0:02:49]} 10. Bd2 {[%emt 0:00:34]} h6 {[%emt 0:02:04]} 11. Ne1 {[%emt 0:00:21]} Be6 {[%emt 0:01:41]} 12. Nd5 {[%emt 0:09:58]} Bxd5 {[%emt 0:11:52]} 13. cxd5 {[%emt 0:00:21]} Nd4 {[%emt 0:00:45]} 14. e3 {[%emt 0:01:26]} Nb5 {[%emt 0:01:30]} 15. Qb3 {[%emt 0:09:47]} Qd7 {[%emt 0:05:40]} 16. a4 {[%emt 0:01:52]} Nc7 {[%emt 0:01:22]} 17. Nc2 {[%emt 0:00:15]} b5 {[%emt 0:23:20]} 18. axb5 {[%emt 0:02:28]} Rfb8 {[%emt 0:00:30]} 19. Na3 {[%emt 0:03:15]} Nxb5 {[%emt 0:00:08]} 20. Qa4 {[%emt 0:03:12]} Qb7 {[%emt 0:02:17]} 21. Nc4 {[%emt 0:01:33]} Ra6 {[%emt 0:04:33]} 22. Nxa5 {[%emt 0:12:54]} Rba8 {[%emt 0:05:24]} 23. b4 {[%emt 0:03:17]} cxb4 {[%emt 0:00:57]} 24. Bxb4 {[%emt 0:00:48]} Qb6 {[%emt 0:04:32]} 25. Nc4 {[%emt 0:01:30]} Qb7 {[%emt 0:01:20]} 26. Ba5 {[%emt 0:00:31]} Rb8 {[%emt 0:01:35]} 27. Rb3 {[%emt 0:02:02]} Nc8 {[%emt 0:02:03]} 28. Rfb1 {[%emt 0:01:53]} Nca7 {[%emt 0:00:26]} 29. Na3 {[%emt 0:08:34]} Ra8 {[%emt 0:00:38]} 30. Bf1 {[%emt 0:04:44]} Bf6 {[%emt 0:05:32]} 31. Qb4 {[%emt 0:02:21]} Qe7 {[%emt 0:05:31]} 32. Nc4 {[%emt 0:01:42]} Kg7 {[%emt 0:01:22]} 33. Qd2 {[%emt 0:00:44]} Qe8 {[%emt 0:03:21]} 34. d4 {[%emt 0:06:50]} exd4 {[%emt 0:02:33]} 35. Nb6 {[%emt 0:00:24]} dxe3 {[%emt 0:01:22]} 36. fxe3 {[%emt 0:06:53]} Qd8 {[%emt 0:00:37]} 37. Bxb5 {[%emt 0:00:58]} Nxb5 {[%emt 0:01:28]} 38. Rxb5 {[%emt 0:00:29]} R8a7 {[%emt 0:00:29]} 39. Nc4 {[%emt 0:00:45]} Qc8 {[%emt 0:00:10]} 40. Qd3 {[%emt 0:00:00]} 1-0

[Event "European Womens-ch 2025"]
[Site "Rhodes"]
[Date "2025.04.05"]
[Round "6.18"]
[White "Krasteva, Beloslava"]
[Black "Fataliyeva, Ulviyya"]
[Result "1-0"]
[Annotator "RC"]
[ECO "E49"]
[WhiteElo "2257"]
[BlackElo "2387"]
[PlyCount "85"]
[EventDate "2025.03.29"]
[EventType "swiss"]
[EventCountry "GRE"]
[SourceTitle "playchess.com"]
[Source "ChessBase"]
[SourceQuality "1"]
[TimeControl "40/5400+30:1800+30"]

1. d4 {[%emt 0:00:04]} Nf6 {[%emt 0:01:49]} 2. c4 {[%emt 0:00:08]} e6 {[%emt 0:00:04]} 3. Nc3 {[%emt 0:00:07]} Bb4 {[%emt 0:00:09]} 4. e3 {[%emt 0:00:11]} O-O {[%emt 0:00:07]} 5. Bd3 {[%emt 0:00:07]} d5 {[%emt 0:00:11]} 6. a3 {[%emt 0:00:08]} Bxc3+ {[%emt 0:00:10]} 7. bxc3 {[%emt 0:00:15]} dxc4 {[%emt 0:00:04]} 8. Bxc4 {[%emt 0:00:07]} c5 {[%emt 0:00:04]} 9. Bd3 {[%emt 0:00:20]} Qc7 {[%emt 0:00:41]} 10. Bb2 {[%emt 0:00:12]} Nc6 {[%emt 0:00:50]} 11. Nf3 {[%emt 0:00:15]} e5 {[%emt 0:00:13]} 12. dxe5 {[%emt 0:00:21]} Nxe5 {[%emt 0:01:08]} 13. Nxe5 {[%emt 0:00:06]} Qxe5 {[%emt 0:00:05]} 14. Qe2 {[%emt 0:00:11]} Re8 {[%emt 0:00:13]} 15. c4 {[%emt 0:00:30]} Qg5 {[%emt 0:01:40]} 16. Qf3 {[%emt 0:00:34]} Bg4 {[%emt 0:09:29]} 17. Bxf6 {[%emt 0:00:50]} Qxf6 {[%emt 0:02:25]} 18. Qxf6 {[%emt 0:00:44]} gxf6 {[%emt 0:00:04]} 19. Kd2 {[%emt 0:01:55]} Rad8 {[%emt 0:00:31]} 20. Kc3 {[%emt 0:00:39]} Rd6 {[%emt 0:01:33]} 21. Bc2 {[%emt 0:04:48]} Bh5 {[%emt 0:10:33]} 22. Rhe1 {[%emt 0:31:12]} Bg6 {[%emt 0:07:58]} 23. Red1 {[%emt 0:01:37]} Rb6 {[%emt 0:08:12]} 24. Rd5 {[%emt 0:03:46]} Bxc2 {[%emt 0:00:56]} 25. Kxc2 {[%emt 0:00:06]} Rc8 {[%emt 0:02:01]} 26. Rad1 {[%emt 0:02:16]} Rcc6 {[%emt 0:05:59]} 27. Rd8+ {[%emt 0:07:43]} Kg7 {[%emt 0:00:05]} 28. R1d7 {[%emt 0:02:13]} Ra6 {[%emt 0:09:45]} 29. Rxb7 {[%emt 0:00:39]} Rxa3 {[%emt 0:00:49]} 30. Rdd7 {[%emt 0:00:52]} Ra2+ {[%emt 0:01:36]} 31. Kd3 {[%emt 0:00:28]} Kg6 {[%emt 0:12:16]} 32. Rxf7 {[%emt 0:01:43]} Kf5 {[%emt 0:00:51]} 33. e4+ {[%emt 0:13:15]} Kf4 {[%emt 0:00:40]} 34. g3+ {[%emt 0:00:38]} Kf3 {[%emt 0:04:47]} 35. e5 {[%emt 0:02:30]} Rxf2 {[%emt 0:09:51]} 36. Rxf6+ {[%emt 0:02:27]} Rxf6 {[%emt 0:00:05]} 37. exf6 {[%emt 0:00:04]} Kg2 {[%emt 0:04:10]} 38. f7 {[%emt 0:11:50]} Rf1 {[%emt 0:00:10]} 39. Rxa7 {[%emt 0:03:18]} Kxh2 {[%emt 0:00:31]} 40. Ke4 {[%emt 0:00:00]} Kxg3 {[%emt 0:00:00]} 41. Ke5 {[%emt 0:00:25]} h5 {[%emt 0:02:36]} 42. Ke6 {[%emt 0:00:36]} h4 {[%emt 0:00:09]} 43. Ra8 {[%emt 0:00:18]} 1-0

[Event "European Womens-ch 2025"]
[Site "Rhodes"]
[Date "2025.04.05"]
[Round "6.19"]
[White "Gevorgyan, Maria"]
[Black "Atalik, Ekaterina"]
[Result "1-0"]
[Annotator "RC"]
[ECO "A45"]
[WhiteElo "2234"]
[BlackElo "2375"]
[PlyCount "75"]
[EventDate "2025.03.29"]
[EventType "swiss"]
[EventCountry "GRE"]
[SourceTitle "playchess.com"]
[Source "ChessBase"]
[SourceQuality "1"]
[TimeControl "40/5400+30:1800+30"]

1. d4 {[%emt 0:00:03]} Nf6 {[%emt 0:00:38]} 2. Bf4 {[%emt 0:00:13]} c5 {[%emt 0:00:41]} 3. e3 {[%emt 0:02:40]} Qb6 {[%emt 0:00:56]} 4. Nc3 {[%emt 0:07:38]} cxd4 {[%emt 0:01:01]} 5. exd4 {[%emt 0:01:43]} d6 {[%emt 0:01:37]} 6. Qd2 {[%emt 0:04:21]} g6 {[%emt 0:02:15]} 7. O-O-O {[%emt 0:00:36]} Bg7 {[%emt 0:00:18]} 8. Bh6 {[%emt 0:04:19]} O-O {[%emt 0:03:56]} 9. h4 {[%emt 0:01:42]} e5 {[%emt 0:23:23]} 10. Be3 {[%emt 0:33:38]} Qa5 {[%emt 0:10:49]} 11. h5 {[%emt 0:06:36]} Bf5 {[%emt 0:12:39]} 12. f3 {[%emt 0:04:12]} Nc6 {[%emt 0:03:03]} 13. g4 {[%emt 0:10:48]} exd4 {[%emt 0:01:59]} 14. gxf5 {[%emt 0:00:05]} dxc3 {[%emt 0:08:55]} 15. Qxc3 {[%emt 0:00:12]} Nb4 {[%emt 0:01:20]} 16. Qb3 {[%emt 0:01:11]} Rac8 {[%emt 0:07:21]} 17. Bd2 {[%emt 0:05:57]} Nfd5 {[%emt 0:03:02]} 18. a3 {[%emt 0:01:39]} Nxc2 {[%emt 0:07:42]} 19. Bxa5 {[%emt 0:00:06]} Nd4+ {[%emt 0:00:10]} 20. Qc4 {[%emt 0:00:10]} Ne3 {[%emt 0:01:41]} 21. Qxc8 {[%emt 0:03:10]} Nb3+ {[%emt 0:01:53]} 22. Kb1 {[%emt 0:00:06]} Rxc8 {[%emt 0:00:09]} 23. Rd3 {[%emt 0:04:04]} Rc1+ {[%emt 0:01:55]} 24. Ka2 {[%emt 0:00:01]} Nxa5 {[%emt 0:01:21]} 25. Rxe3 {[%emt 0:00:06]} Rxf1 {[%emt 0:00:05]} 26. f6 {[%emt 0:00:42]} Bf8 {[%emt 0:00:38]} 27. Re2 {[%emt 0:00:44]} Nc6 {[%emt 0:01:38]} 28. Reh2 {[%emt 0:01:06]} g5 {[%emt 0:00:18]} 29. Nh3 {[%emt 0:02:02]} Rxf3 {[%emt 0:01:16]} 30. Nxg5 {[%emt 0:00:06]} Rg3 {[%emt 0:00:38]} 31. Ne4 {[%emt 0:00:29]} Rg4 {[%emt 0:00:15]} 32. Rh4 {[%emt 0:00:30]} Rg2 {[%emt 0:00:29]} 33. R1h2 {[%emt 0:00:29]} Rg1 {[%emt 0:00:15]} 34. Rd2 {[%emt 0:00:08]} Ne5 {[%emt 0:00:10]} 35. Rhh2 {[%emt 0:00:34]} d5 {[%emt 0:00:11]} 36. Rxd5 {[%emt 0:00:30]} Ng4 {[%emt 0:00:19]} 37. Rg5+ {[%emt 0:00:14]} Kh8 {[%emt 0:00:05]} 38. Rh4 {[%emt 0:00:07]} 1-0

[Event "European Womens-ch 2025"]
[Site "Rhodes"]
[Date "2025.04.05"]
[Round "6.20"]
[White "Calzetta Ruiz, Monica"]
[Black "Guichard, Pauline"]
[Result "1/2-1/2"]
[Annotator "ChessBase"]
[ECO "B13"]
[WhiteElo "2230"]
[BlackElo "2355"]
[PlyCount "23"]
[EventDate "2025.03.29"]
[EventType "swiss"]
[EventCountry "GRE"]
[SourceTitle "playchess.com"]
[Source "ChessBase"]
[SourceQuality "1"]
[TimeControl "40/5400+30:1800+30"]

1. e4 {[%emt 0:00:03]} c6 {[%emt 0:00:06]} 2. d4 {[%emt 0:00:11]} d5 {[%emt 0:00:07]} 3. exd5 {[%emt 0:00:12]} cxd5 {[%emt 0:00:15]} 4. c4 {[%emt 0:00:12]} Nf6 {[%emt 0:00:11]} 5. Nc3 {[%emt 0:00:14]} Nc6 {[%emt 0:00:19]} 6. Nf3 {[%emt 0:00:47]} Bg4 {[%emt 0:00:32]} 7. cxd5 {[%emt 0:00:35]} Nxd5 {[%emt 0:00:29]} 8. Qb3 {[%emt 0:00:19]} Bxf3 {[%emt 0:00:21]} 9. gxf3 {[%emt 0:00:20]} e6 {[%emt 0:00:21]} 10. Qxb7 {[%emt 0:00:39]} Nxd4 {[%emt 0:00:32]} 11. Bb5+ {[%emt 0:00:30]} Nxb5 {[%emt 0:00:10]} 12. Qc6+ {[%emt 0:00:24]} 1/2-1/2

[Event "European Womens-ch 2025"]
[Site "Rhodes"]
[Date "2025.04.05"]
[Round "6.21"]
[White "Brunello, Marina"]
[Black "Mgeladze, Kesaria"]
[Result "0-1"]
[Annotator "ChessBase"]
[ECO "B57"]
[WhiteElo "2330"]
[BlackElo "2200"]
[PlyCount "80"]
[EventDate "2025.03.29"]
[EventType "swiss"]
[EventCountry "GRE"]
[SourceTitle "playchess.com"]
[Source "ChessBase"]
[SourceQuality "1"]
[TimeControl "40/5400+30:1800+30"]

1. e4 {[%emt 0:02:50]} c5 {[%emt 0:00:07]} 2. Nf3 {[%emt 0:00:04]} d6 {[%emt 0:00:06]} 3. d4 {[%emt 0:00:04]} cxd4 {[%emt 0:00:07]} 4. Nxd4 {[%emt 0:00:05]} Nf6 {[%emt 0:00:07]} 5. Nc3 {[%emt 0:00:03]} Nc6 {[%emt 0:00:07]} 6. Bc4 {[%emt 0:00:10]} Qb6 {[%emt 0:00:16]} 7. Nxc6 {[%emt 0:00:15]} bxc6 {[%emt 0:00:07]} 8. Bb3 {[%emt 0:00:06]} e5 {[%emt 0:05:47]} 9. Be3 {[%emt 0:04:44]} Qc7 {[%emt 0:00:36]} 10. Qd2 {[%emt 0:00:38]} Be7 {[%emt 0:07:54]} 11. f3 {[%emt 0:03:57]} O-O {[%emt 0:08:42]} 12. O-O-O {[%emt 0:00:04]} Be6 {[%emt 0:06:24]} 13. Qf2 {[%emt 0:12:42]} Rad8 {[%emt 0:13:36]} 14. g4 {[%emt 0:03:13]} Bxb3 {[%emt 0:01:41]} 15. axb3 {[%emt 0:00:56]} d5 {[%emt 0:00:10]} 16. Qg3 {[%emt 0:03:19]} dxe4 {[%emt 0:16:58]} 17. fxe4 {[%emt 0:01:07]} Qa5 {[%emt 0:02:06]} 18. Qf3 {[%emt 0:01:30]} Nd7 {[%emt 0:05:03]} 19. Rhf1 {[%emt 0:10:02]} Bc5 {[%emt 0:06:06]} 20. Bg5 {[%emt 0:08:03]} f6 {[%emt 0:00:45]} 21. Bd2 {[%emt 0:00:06]} Bb4 {[%emt 0:05:16]} 22. Nb1 {[%emt 0:06:22]} Bxd2+ {[%emt 0:00:57]} 23. Rxd2 {[%emt 0:00:04]} Nc5 {[%emt 0:01:07]} 24. Rxd8 {[%emt 0:04:04]} Rxd8 {[%emt 0:02:29]} 25. g5 {[%emt 0:02:24]} Rf8 {[%emt 0:01:10]} 26. Qf5 {[%emt 0:00:59]} g6 {[%emt 0:01:55]} 27. Qf3 {[%emt 0:05:42]} f5 {[%emt 0:00:11]} 28. exf5 {[%emt 0:00:17]} Rxf5 {[%emt 0:00:20]} 29. Qe2 {[%emt 0:00:30]} Qb5 {[%emt 0:01:43]} 30. Qxb5 {[%emt 0:00:21]} cxb5 {[%emt 0:00:04]} 31. Rxf5 {[%emt 0:00:15]} gxf5 {[%emt 0:00:04]} 32. Nc3 {[%emt 0:00:07]} a6 {[%emt 0:01:20]} 33. b4 {[%emt 0:04:47]} Ne6 {[%emt 0:01:20]} 34. Nd5 {[%emt 0:00:03]} Kf7 {[%emt 0:01:48]} 35. h4 {[%emt 0:00:04]} f4 {[%emt 0:00:26]} 36. b3 {[%emt 0:03:43]} Kg6 {[%emt 0:02:22]} 37. c4 {[%emt 0:00:48]} Kh5 {[%emt 0:00:38]} 38. Nf6+ {[%emt 0:01:05]} Kxh4 {[%emt 0:00:06]} 39. Nxh7 {[%emt 0:00:04]} f3 {[%emt 0:00:25]} 40. Kd2 {[%emt 0:00:00]} Kh3 {[%emt 0:00:00]} 0-1